fUST/lending_fUST_20250607
["ID","MTS","AMOUNT","RATE_DAILY","PERIOD"]
[364911460,1749295841349,-500.0,0.00020055,2]
[364911461,1749295841360,-500.0,0.00020059,2]
[364911462,1749295841370,-151.0,0.0002006,2]
[364911463,1749295841380,-151.0,0.0002006,2]
[364911464,1749295841389,-151.0,0.0002006,2]
[364911465,1749295841399,-151.0,0.0002006,2]
[364911466,1749295841408,-221.675742,0.00020061,2]
[364911467,1749295841418,-1051.68157152,0.00020072,2]
[364911468,1749295841428,-508.94531069,0.000201,2]
[364911469,1749295841437,-500.0,0.00020134,2]
[364911470,1749295841447,-418.0,0.00020156,2]
[364911471,1749295841458,-263.476,0.00020186,2]
[364911472,1749295841469,-501.11559569,0.00020221,2]
[364911473,1749295841479,-500.0,0.00020221,2]
[364911474,1749295841489,-545.23765808,0.00020221,2]
[364911475,1749295841498,-489.07048339,0.00020224,2]
[364911476,1749295841507,-151.0,0.00020229,2]
[364911477,1749295841517,-151.0,0.00020229,2]
[364911478,1749295841526,-1051.68157152,0.00020245,2]
[364911479,1749295841537,-440.0,0.00020273,2]
[364911480,1749295841548,-1478.67,0.00020273,2]
[364911481,1749295841557,-440.0,0.00020273,2]
[364911482,1749295841567,-480.4,0.00020273,2]
[364911483,1749295841578,-440.0,0.00020273,2]
[364911484,1749295841589,-440.0,0.00020273,2]
[364911485,1749295841600,-440.0,0.00020273,2]
[364911486,1749295841610,-440.0,0.00020273,2]
[364911487,1749295841620,-440.0,0.00020273,2]
[364911488,1749295841630,-440.0,0.00020273,2]
[364911489,1749295841640,-493.84,0.00020273,2]
[364911490,1749295841649,-784.26,0.00020273,2]
[364911491,1749295841659,-440.0,0.00020273,2]
[364911492,1749295841669,-440.0,0.00020273,2]
[364911493,1749295841678,-440.0,0.00020273,2]
[364911494,1749295841687,-440.0,0.00020273,2]
[364911495,1749295841697,-440.0,0.00020273,2]
[364911496,1749295841707,-440.0,0.00020273,2]
[364911497,1749295841716,-440.0,0.00020273,2]
[364911498,1749295841725,-440.0,0.00020273,2]
[364911499,1749295841737,-440.0,0.00020273,2]
[364911500,1749295841747,-1252.27,0.00020273,2]
[364911501,1749295841758,-440.0,0.00020273,2]
[364911502,1749295841768,-440.0,0.00020273,2]
[364911503,1749295841778,-1030.27,0.00020273,2]
[364911504,1749295841788,-472.08,0.00020273,2]
[364911505,1749295841798,-440.0,0.00020273,2]
[364911506,1749295841807,-498.09,0.00020273,2]
[364911507,1749295841818,-695.59,0.00020273,2]
[364911508,1749295841828,-566.43,0.00020273,2]
[364911509,1749295841839,-1169.88,0.00020273,2]
[364911510,1749295841848,-440.0,0.00020273,2]
[364911511,1749295841857,-440.0,0.00020273,2]
[364911512,1749295841867,-440.0,0.00020273,2]
[364911513,1749295841876,-770.23,0.00020273,2]
[364911514,1749295841886,-440.0,0.00020273,2]
[364911515,1749295841896,-440.0,0.00020273,2]
[364911516,1749295841906,-982.15,0.00020273,2]
[364911517,1749295841915,-440.0,0.00020273,2]
[364911518,1749295841925,-440.0,0.00020273,2]
[364911519,1749295841935,-525.1,0.00020273,2]
[364911520,1749295841946,-440.0,0.00020273,2]
[364911521,1749295842060,-446.5,0.00020273,2]
[364911522,1749295842071,-500.0,0.00020284,2]
[364911523,1749295842081,-229.56495552,0.00020285,2]
[364911524,1749295842090,-160.0,0.00020285,2]
[364911525,1749295842099,-842.5625,0.00020285,2]
[364911526,1749295842110,-160.0,0.00020285,2]
[364911527,1749295842121,-423.90693687,0.00020285,2]
[364911528,1749295842130,-160.0,0.00020285,2]
[364911529,1749295842140,-834.52263295,0.00020285,2]
[364911530,1749295842150,-11851.94353573,0.00020285,2]
[364911531,1749295842160,-213.01382694,0.00020285,2]
[364911532,1749295842170,-527.0,0.0002032,2]
[364911533,1749295842183,-500.0,0.00020327,2]
[364911534,1749295842195,-440.0,0.00020328,2]
[364911535,1749295842204,-440.0,0.00020328,2]
[364911536,1749295842214,-440.0,0.00020328,2]
[364911537,1749295842224,-440.0,0.00020328,2]
[364911538,1749295842235,-500.0,0.00020329,2]
[364911539,1749295842244,-151.0,0.00020336,2]
[364911540,1749295842254,-151.0,0.00020336,2]
[364911541,1749295842264,-1051.68157152,0.00020417,3]
[364911542,1749295842274,-420.0,0.00020469,2]
[364911543,1749295842286,-1000.0,0.00020524,2]
[364911544,1749295842296,-500.0,0.00020547,2]
[364911545,1749295842310,-440.0,0.00020547,2]
[364911546,1749295842320,-1478.67,0.00020547,2]
[364911547,1749295842329,-440.0,0.00020547,2]
[364911548,1749295842339,-440.0,0.00020547,2]
[364911549,1749295842350,-440.0,0.00020547,2]
[364911550,1749295842361,-440.0,0.00020547,2]
[364911551,1749295842371,-440.0,0.00020547,2]
[364911552,1749295842382,-440.0,0.00020547,2]
[364911553,1749295842393,-440.0,0.00020547,2]
[364911554,1749295842402,-493.84,0.00020547,2]
[364911555,1749295842412,-784.26,0.00020547,2]
[364911556,1749295842422,-440.0,0.00020547,2]
[364911557,1749295842432,-440.0,0.00020547,2]
[364911558,1749295842442,-430.0,0.00020547,2]
[364911559,1749295842452,-440.0,0.00020547,2]
[364911560,1749295842462,-440.0,0.00020547,2]
[364911561,1749295842471,-440.0,0.00020547,2]
[364911562,1749295842482,-440.0,0.00020547,2]
[364911563,1749295842492,-440.0,0.00020547,2]
[364911564,1749295842502,-440.0,0.00020547,2]
[364911565,1749295842512,-1252.27,0.00020547,2]
[364911566,1749295842522,-440.0,0.00020547,2]
[364911567,1749295842531,-440.0,0.00020547,2]
[364911568,1749295842541,-1030.27,0.00020547,2]
[364911569,1749295842551,-472.08,0.00020547,2]
[364911570,1749295842561,-440.0,0.00020547,2]
[364911571,1749295842570,-498.09,0.00020547,2]
[364911572,1749295842580,-695.59,0.00020547,2]
[364911573,1749295842590,-566.43,0.00020547,2]
[364911574,1749295842600,-1169.88,0.00020547,2]
[364911575,1749295842610,-440.0,0.00020547,2]
[364911576,1749295842620,-440.0,0.00020547,2]
[364911577,1749295842630,-440.0,0.00020547,2]
[364911578,1749295842640,-770.23,0.00020547,2]
[364911579,1749295842650,-440.0,0.00020547,2]
[364911580,1749295842661,-440.0,0.00020547,2]
[364911581,1749295842671,-982.15,0.00020547,2]
[364911582,1749295842681,-440.0,0.00020547,2]
[364911583,1749295842691,-440.0,0.00020547,2]
[364911584,1749295842701,-525.1,0.00020547,2]
[364911585,1749295842711,-440.0,0.00020547,2]
[364911586,1749295842720,-446.5,0.00020547,2]
[364911587,1749295842730,-500.0,0.00020589,2]
[364911588,1749295842740,-1051.68157152,0.0002059,3]
[364911589,1749295842750,-1198.27,0.000206,2]
[364911590,1749295842760,-440.0,0.00020602,2]
[364911591,1749295842770,-350.0,0.00020602,2]
[364911592,1749295842779,-322.3327829,0.00020602,2]
[364911593,1749295842789,-500.0,0.00020608,2]
[364911594,1749295842799,-500.0,0.00020608,2]
[364911595,1749295842809,-511.46,0.00020608,2]
[364911596,1749295842818,-151.0,0.00020609,2]
[364911597,1749295842828,-151.0,0.00020609,2]
[364911598,1749295842838,-1051.68157152,0.00020762,3]
[364911599,1749295842848,-151.0,0.00020763,2]
[364911600,1749295842857,-151.0,0.00020763,2]
[364911601,1749295842867,-500.0,0.00020773,2]
[364911602,1749295842877,-1478.67,0.00020821,2]
[364911603,1749295842888,-440.0,0.00020821,2]
[364911604,1749295842898,-491.04,0.00020821,2]
[364911605,1749295842908,-440.0,0.00020821,2]
[364911606,1749295842919,-440.0,0.00020821,2]
[364911607,1749295842929,-511.15,0.00020821,2]
[364911608,1749295842938,-440.0,0.00020821,2]
[364911609,1749295842948,-440.0,0.00020821,2]
[364911610,1749295842958,-493.84,0.00020821,2]
[364911611,1749295842968,-784.26,0.00020821,2]
[364911612,1749295842977,-387.96,0.00020821,2]
[364911613,1749295842987,-440.0,0.00020821,2]
[364911614,1749295842999,-525.76897121,0.00020821,2]
[364911615,1749295843009,-440.0,0.00020821,2]
[364911616,1749295843019,-440.0,0.00020821,2]
[364911617,1749295843030,-440.0,0.00020821,2]
[364911618,1749295843039,-440.0,0.00020821,2]
[364911619,1749295843049,-440.0,0.00020821,2]
[364911620,1749295843060,-1252.27,0.00020821,2]
[364911621,1749295843070,-440.0,0.00020821,2]
[364911622,1749295843079,-440.0,0.00020821,2]
[364911623,1749295843089,-1030.27,0.00020821,2]
[364911624,1749295843098,-472.08,0.00020821,2]
[364911625,1749295843109,-440.0,0.00020821,2]
[364911626,1749295843119,-498.09,0.00020821,2]
[364911627,1749295843128,-695.59,0.00020821,2]
[364911628,1749295843139,-566.43,0.00020821,2]
[364911629,1749295843148,-1169.88,0.00020821,2]
[364911630,1749295843158,-440.0,0.00020821,2]
[364911631,1749295843168,-440.0,0.00020821,2]
[364911632,1749295843178,-440.0,0.00020821,2]
[364911634,1749295843188,-770.23,0.00020821,2]
[364911636,1749295843198,-440.0,0.00020821,2]
[364911638,1749295843207,-440.0,0.00020821,2]
[364911639,1749295843218,-982.15,0.00020821,2]
[364911640,1749295843227,-440.0,0.00020821,2]
[364911641,1749295843236,-440.0,0.00020821,2]
[364911642,1749295843246,-525.1,0.00020821,2]
[364911643,1749295843256,-440.0,0.00020821,2]
[364911644,1749295843266,-446.5,0.00020821,2]
[364911645,1749295843275,-207.4,0.00020875,2]
[364911646,1749295843286,-500.0,0.00020875,2]
[364911647,1749295843295,-616.20654031,0.00020875,2]
[364911648,1749295843308,-440.0,0.00020876,2]
[364911649,1749295843318,-151.0,0.00020882,2]
[364911650,1749295843328,-151.0,0.00020882,2]
[364911651,1749295843337,-1051.68157152,0.00020934,4]
[364911652,1749295843347,-2392.69,0.00020972,2]
[364911653,1749295843356,-151.0,0.00020986,2]
[364911654,1749295843366,-151.0,0.00020986,2]
[364911655,1749295843375,-183.35058372,0.00021072,2]
[364911656,1749295843384,-1478.67,0.00021095,2]
[364911657,1749295843397,-440.0,0.00021095,2]
[364911658,1749295843407,-440.0,0.00021095,2]
[364911659,1749295843417,-440.0,0.00021095,2]
[364911660,1749295843426,-440.0,0.00021095,2]
[364911661,1749295843436,-440.0,0.00021095,2]
[364911662,1749295843445,-493.84,0.00021095,2]
[364911663,1749295843455,-784.26,0.00021095,2]
[364911664,1749295843465,-440.0,0.00021095,2]
[364911665,1749295843475,-440.0,0.00021095,2]
[364911666,1749295843485,-440.0,0.00021095,2]
[364911667,1749295843496,-440.0,0.00021095,2]
[364911668,1749295843506,-440.0,0.00021095,2]
[364911669,1749295843515,-440.0,0.00021095,2]
[364911670,1749295843526,-1252.27,0.00021095,2]
[364911671,1749295843535,-440.0,0.00021095,2]
[364911672,1749295843545,-440.0,0.00021095,2]
[364911673,1749295843555,-1030.27,0.00021095,2]
[364911675,1749295843564,-472.08,0.00021095,2]
[364911677,1749295843573,-440.0,0.00021095,2]
[364911678,1749295843583,-498.09,0.00021095,2]
[364911679,1749295843593,-695.59,0.00021095,2]
[364911680,1749295843602,-566.43,0.00021095,2]
[364911681,1749295843612,-1169.88,0.00021095,2]
[364911682,1749295843622,-583.50764227,0.00021095,2]
[364911683,1749295843631,-304.06,0.00021095,2]
[364911684,1749295843641,-440.0,0.00021095,2]
[364911685,1749295843651,-770.23,0.00021095,2]
[364911686,1749295843660,-440.0,0.00021095,2]
[364911687,1749295843671,-440.0,0.00021095,2]
[364911688,1749295843682,-982.15,0.00021095,2]
[364911689,1749295843692,-440.0,0.00021095,2]
[364911690,1749295843702,-440.0,0.00021095,2]
[364911691,1749295843712,-525.1,0.00021095,2]
[364911692,1749295843721,-440.0,0.00021095,2]
[364911693,1749295843731,-446.5,0.00021095,2]
[364911694,1749295843741,-37827.03,0.000211,2]
[364911695,1749295843751,-1051.68157152,0.00021107,4]
[364911696,1749295843761,-440.0,0.0002115,2]
[364911697,1749295843771,-151.0,0.00021156,2]
[364911698,1749295843780,-151.0,0.00021156,2]
[364911699,1749295843790,-500.0,0.00021254,2]
[364911700,1749295843800,-1051.68157152,0.00021279,5]
[364911701,1749295843809,-151.0,0.0002131,2]
[364911702,1749295843819,-151.0,0.0002131,2]
[364911703,1749295843830,-1478.67,0.00021369,2]
[364911704,1749295843840,-440.0,0.00021369,2]
[364911705,1749295843852,-440.0,0.00021369,2]
[364911706,1749295843862,-440.0,0.00021369,2]
[364911707,1749295843872,-440.0,0.00021369,2]
[364911708,1749295843882,-440.0,0.00021369,2]
[364911709,1749295843893,-493.84,0.00021369,2]
[364911710,1749295843903,-784.26,0.00021369,2]
[364911711,1749295843912,-440.0,0.00021369,2]
[364911712,1749295843922,-440.0,0.00021369,2]
[364911713,1749295843931,-440.0,0.00021369,2]
[364911714,1749295843941,-440.0,0.00021369,2]
[364911715,1749295843950,-440.0,0.00021369,2]
[364911716,1749295843960,-440.0,0.00021369,2]
[364911717,1749295843969,-1252.27,0.00021369,2]
[364911718,1749295843978,-440.0,0.00021369,2]
[364911719,1749295843987,-440.0,0.00021369,2]
[364911720,1749295843998,-1030.27,0.00021369,2]
[364911721,1749295844007,-472.08,0.00021369,2]
[364911722,1749295844017,-440.0,0.00021369,2]
[364911723,1749295844026,-498.09,0.00021369,2]
[364911724,1749295844036,-695.59,0.00021369,2]
[364911725,1749295844045,-566.43,0.00021369,2]
[364911726,1749295844055,-1169.88,0.00021369,2]
[364911727,1749295844064,-440.0,0.00021369,2]
[364911728,1749295844074,-770.23,0.00021369,2]
[364911729,1749295844084,-440.0,0.00021369,2]
[364911730,1749295844093,-440.0,0.00021369,2]
[364911731,1749295844103,-982.15,0.00021369,2]
[364911732,1749295844112,-449.86,0.00021369,2]
[364911733,1749295844121,-440.0,0.00021369,2]
[364911734,1749295844131,-525.1,0.00021369,2]
[364911735,1749295844140,-440.0,0.00021369,2]
[364911736,1749295844150,-446.5,0.00021369,2]
[364911737,1749295844161,-735.76,0.000214,2]
[364911738,1749295844172,-440.0,0.00021424,2]
[364911739,1749295844183,-500.0,0.00021427,2]
[364911740,1749295844195,-151.0,0.00021432,2]
[364911741,1749295844205,-207.13014,0.00021432,2]
[364911742,1749295844214,-1051.68157152,0.00021452,5]
[364911743,1749295844225,-2223.0,0.00021521,2]
[364911744,1749295844234,-709.0,0.00021521,2]
[364911745,1749295844243,-405.0,0.00021521,2]
[364911746,1749295844252,-500.0,0.00021536,2]
[364911747,1749295844262,-500.0,0.00021536,2]
[364911748,1749295844272,-500.0,0.00021536,2]
[364911749,1749295844282,-500.0,0.00021536,2]
[364911750,1749295844291,-500.0,0.00021569,2]
[364911751,1749295844305,-161.27367462,0.00021608,2]
[364911752,1749295844314,-1051.68157152,0.00021624,5]
[364911753,1749295844325,-1478.67,0.00021643,2]
[364911754,1749295844335,-440.0,0.00021643,2]
[364911755,1749295844346,-554.76,0.00021643,2]
[364911756,1749295844356,-440.0,0.00021643,2]
[364911757,1749295844366,-440.0,0.00021643,2]
[364911758,1749295844377,-440.0,0.00021643,2]
[364911759,1749295844388,-493.84,0.00021643,2]
[364911760,1749295844399,-784.26,0.00021643,2]
[364911761,1749295844409,-440.0,0.00021643,2]
[364911762,1749295844419,-440.0,0.00021643,2]
[364911763,1749295844428,-440.0,0.00021643,2]
[364911764,1749295844438,-556.66,0.00021643,2]
[364911765,1749295844448,-440.0,0.00021643,2]
[364911766,1749295844459,-1252.27,0.00021643,2]
[364911767,1749295844470,-565.97,0.00021643,2]
[364911768,1749295844575,-440.0,0.00021643,2]
[364911769,1749295844586,-1030.27,0.00021643,2]
[364911770,1749295844596,-472.08,0.00021643,2]
[364911771,1749295844607,-440.0,0.00021643,2]
[364911772,1749295844618,-498.09,0.00021643,2]
[364911773,1749295844629,-695.59,0.00021643,2]
[364911774,1749295844639,-566.43,0.00021643,2]
[364911775,1749295844649,-1169.88,0.00021643,2]
[364911776,1749295844659,-372.50046884,0.00021643,2]
[364911777,1749295844669,-770.23,0.00021643,2]
[364911778,1749295844679,-440.0,0.00021643,2]
[364911779,1749295844688,-440.0,0.00021643,2]
[364911780,1749295844697,-982.15,0.00021643,2]
[364911781,1749295844708,-440.0,0.00021643,2]
[364911782,1749295844718,-525.1,0.00021643,2]
[364911783,1749295844728,-440.0,0.00021643,2]
[364911784,1749295844738,-446.5,0.00021643,2]
[364911785,1749295844749,-440.0,0.00021698,2]
[364911786,1749295844758,-151.0,0.00021698,2]
[364911787,1749295844767,-151.0,0.00021698,2]
[364911788,1749295844777,-1051.68157152,0.00021797,6]
[364911789,1749295844787,-1198.27,0.000218,2]
[364911790,1749295844796,-500.0,0.00021869,2]
[364911791,1749295844805,-1478.67,0.00021917,2]
[364911792,1749295844815,-440.0,0.00021917,2]
[364911793,1749295844825,-440.0,0.00021917,2]
[364911794,1749295844835,-440.0,0.00021917,2]
[364911795,1749295844844,-440.0,0.00021917,2]
[364911796,1749295844853,-493.84,0.00021917,2]
[364911797,1749295844863,-784.26,0.00021917,2]
[364911798,1749295844873,-440.0,0.00021917,2]
[364911799,1749295844884,-440.0,0.00021917,2]
[364911800,1749295844894,-440.0,0.00021917,2]
[364911801,1749295844904,-1252.27,0.00021917,2]
[364911802,1749295844914,-440.0,0.00021917,2]
[364911803,1749295844924,-1030.27,0.00021917,2]
[364911804,1749295844935,-472.08,0.00021917,2]
[364911805,1749295844945,-440.0,0.00021917,2]
[364911806,1749295844954,-498.09,0.00021917,2]
[364911807,1749295844965,-695.59,0.00021917,2]
[364911808,1749295844975,-566.43,0.00021917,2]
[364911809,1749295844985,-1169.88,0.00021917,2]
[364911810,1749295844997,-770.23,0.00021917,2]
[364911811,1749295845008,-440.0,0.00021917,2]
[364911812,1749295845020,-440.0,0.00021917,2]
[364911813,1749295845031,-982.15,0.00021917,2]
[364911814,1749295845041,-525.1,0.00021917,2]
[364911815,1749295845050,-440.0,0.00021917,2]
[364911816,1749295845060,-446.5,0.00021917,2]
[364911817,1749295845069,-1051.68157152,0.00021969,6]
[364911818,1749295845078,-440.0,0.00021972,2]
[364911819,1749295845088,-1000.0,0.00021975,2]
[364911820,1749295845097,-304.63792749,0.00022064,2]
[364911821,1749295845107,-1000.0,0.00022084,2]
[364911822,1749295845116,-504.53288696,0.00022117,2]
[364911823,1749295845126,-1051.68157152,0.00022141,6]
[364911824,1749295845135,-1478.67,0.00022191,2]
[364911825,1749295845147,-440.0,0.00022191,2]
[364911826,1749295845156,-493.84,0.00022191,2]
[364911827,1749295845167,-784.26,0.00022191,2]
[364911828,1749295845177,-440.0,0.00022191,2]
[364911829,1749295845191,-440.0,0.00022191,2]
[364911830,1749295845202,-440.0,0.00022191,2]
[364911831,1749295845211,-1252.27,0.00022191,2]
[364911832,1749295845222,-440.0,0.00022191,2]
[364911833,1749295845232,-1030.27,0.00022191,2]
[364911834,1749295845242,-472.08,0.00022191,2]
[364911835,1749295845251,-204.96,0.00022191,2]
[364911836,1749295845261,-498.09,0.00022191,2]
[364911837,1749295845270,-695.59,0.00022191,2]
[364911838,1749295845280,-566.43,0.00022191,2]
[364911839,1749295845289,-1169.88,0.00022191,2]
[364911840,1749295845301,-770.23,0.00022191,2]
[364911841,1749295845314,-440.0,0.00022191,2]
[364911842,1749295845324,-440.0,0.00022191,2]
[364911843,1749295845334,-982.15,0.00022191,2]
[364911844,1749295845344,-525.1,0.00022191,2]
[364911845,1749295845353,-440.0,0.00022191,2]
[364911846,1749295845363,-446.5,0.00022191,2]
[364911847,1749295845373,-150.0,0.000222,2]
[364911848,1749295845382,-18247.52867394,0.000222,2]
[364911849,1749295845475,-160.0,0.00020283,2]
[364911850,1749295845484,-19579.50132606,0.000222,2]
[364911851,1749295845495,-215.0738,0.00022244,2]
[364911852,1749295845504,-557.89405696,0.00022246,2]
[364911853,1749295845514,-305.61895707,0.0002227,2]
[364911854,1749295845525,-1051.68157152,0.00022314,7]
[364911855,1749295845535,-287.0,0.00022316,2]
[364911856,1749295845545,-1478.67,0.00022465,2]
[364911857,1749295845556,-440.0,0.00022465,2]
[364911858,1749295845565,-493.84,0.00022465,2]
[364911859,1749295845575,-784.26,0.00022465,2]
[364911860,1749295845586,-440.0,0.00022465,2]
[364911861,1749295845596,-440.0,0.00022465,2]
[364911862,1749295845605,-440.0,0.00022465,2]
[364911863,1749295845615,-1252.27,0.00022465,2]
[364911864,1749295845625,-440.0,0.00022465,2]
[364911865,1749295845634,-1030.27,0.00022465,2]
[364911866,1749295845644,-472.08,0.00022465,2]
[364911867,1749295845654,-498.09,0.00022465,2]
[364911868,1749295845665,-695.59,0.00022465,2]
[364911869,1749295845674,-566.43,0.00022465,2]
[364911870,1749295845684,-1169.88,0.00022465,2]
[364911871,1749295845694,-770.23,0.00022465,2]
[364911872,1749295845704,-440.0,0.00022465,2]
[364911873,1749295845714,-982.15,0.00022465,2]
[364911874,1749295845723,-525.1,0.00022465,2]
[364911875,1749295845734,-440.0,0.00022465,2]
[364911876,1749295845745,-446.5,0.00022465,2]
[364911877,1749295845754,-153.099473,0.00022486,7]
[364911878,1749295845764,-153.099473,0.00022486,7]
[364911879,1749295845775,-1051.68157152,0.00022486,7]
[364911880,1749295845784,-163.634894,0.00022505,2]
[364911881,1749295845795,-1500.0,0.00022523,2]
[364911882,1749295845805,-500.0,0.0002259,2]
[364911883,1749295845817,-500.0,0.0002259,2]
[364911884,1749295845827,-651.143197,0.0002261,3]
[364911885,1749295845838,-1500.0,0.00022632,2]
[364911886,1749295845848,-1051.68157152,0.00022659,7]
[364911887,1749295845858,-1478.67,0.00022739,2]
[364911888,1749295845868,-440.0,0.00022739,2]
[364911889,1749295845878,-493.84,0.00022739,2]
[364911890,1749295845891,-784.26,0.00022739,2]
[364911891,1749295845901,-440.0,0.00022739,2]
[364911892,1749295845912,-440.0,0.00022739,2]
[364911893,1749295845923,-440.0,0.00022739,2]
[364911894,1749295845933,-1252.27,0.00022739,2]
[364911895,1749295845943,-1030.27,0.00022739,2]
[364911896,1749295845953,-440.0,0.00022739,2]
[364911897,1749295845963,-472.08,0.00022739,2]
[364911898,1749295845972,-498.09,0.00022739,2]
[364911899,1749295845981,-695.59,0.00022739,2]
[364911900,1749295845991,-566.43,0.00022739,2]
[364911901,1749295846000,-1169.88,0.00022739,2]
[364911902,1749295846011,-770.23,0.00022739,2]
[364911903,1749295846022,-440.0,0.00022739,2]
[364911904,1749295846032,-982.15,0.00022739,2]
[364911905,1749295846042,-525.1,0.00022739,2]
[364911906,1749295846054,-440.0,0.00022739,2]
[364911907,1749295846064,-446.5,0.00022739,2]
[364911908,1749295846076,-735.76,0.000228,7]
[364911909,1749295846087,-1051.68157152,0.00022831,8]
[364911910,1749295846096,-4785.37,0.00022879,2]
[364911911,1749295846106,-501.09580603,0.0002288,2]
[364911912,1749295846116,-500.0,0.00022965,2]
[364911913,1749295846125,-413.5,0.00023,30]
[364911914,1749295846136,-410.0,0.00023,60]
[364911915,1749295846147,-1000.0,0.00023,23]
[364911916,1749295846158,-500.0,0.00023,8]
[364911918,1749295846167,-500.0,0.00023,8]
[364911919,1749295846177,-150.0,0.00023,30]
[364911920,1749295846188,-1051.68157152,0.00023003,8]
[364911921,1749295846197,-1478.67,0.00023013,2]
[364911922,1749295846208,-440.0,0.00023013,2]
[364911923,1749295846217,-493.84,0.00023013,2]
[364911924,1749295846227,-784.26,0.00023013,2]
[364911925,1749295846238,-440.0,0.00023013,2]
[364911926,1749295846247,-440.0,0.00023013,2]
[364911927,1749295846257,-440.0,0.00023013,2]
[364911928,1749295846266,-1252.27,0.00023013,2]
[364911929,1749295846276,-1030.27,0.00023013,2]
[364911930,1749295846287,-407.6,0.00023013,2]
[364911931,1749295846297,-472.08,0.00023013,2]
[364911932,1749295846311,-498.09,0.00023013,2]
[364911933,1749295846321,-695.59,0.00023013,2]
[364911934,1749295846330,-566.43,0.00023013,2]
[364911935,1749295846340,-1169.88,0.00023013,2]
[364911936,1749295846351,-770.23,0.00023013,2]
[364911937,1749295846360,-440.0,0.00023013,2]
[364911938,1749295846370,-982.15,0.00023013,2]
[364911939,1749295846380,-525.1,0.00023013,2]
[364911940,1749295846390,-440.0,0.00023013,2]
[364911941,1749295846400,-446.5,0.00023013,2]
[364911942,1749295846409,-2208.806,0.00023049,2]
[364911943,1749295846420,-500.0,0.00023049,2]
[364911944,1749295846429,-151.0,0.00023068,7]
[364911945,1749295846439,-155.402055,0.00023068,7]
[364911946,1749295846450,-151.0,0.00023068,7]
[364911947,1749295846460,-1007.67347066,0.00023071,2]
[364911948,1749295846470,-1198.27,0.000231,7]
[364911949,1749295846479,-151.0,0.000231,7]
[364911950,1749295846488,-501.19713721,0.00023138,2]
[364911951,1749295846498,-1051.68157152,0.00023176,8]
[364911952,1749295846512,-206.0,0.00023178,3]
[364911953,1749295846522,-2000.0,0.0002318,2]
[364911954,1749295846531,-16610.36934993,0.00023187,11]
[364911955,1749295846550,-8851.16065007,0.00023187,11]
[364911956,1749295846559,-253.141438,0.00023286,7]
[364911957,1749295846569,-1478.67,0.00023287,2]
[364911958,1749295846578,-440.0,0.00023287,2]
[364911959,1749295846588,-493.84,0.00023287,2]
[364911960,1749295846597,-784.26,0.00023287,2]
[364911961,1749295846607,-569.34,0.00023287,2]
[364911962,1749295846617,-440.0,0.00023287,2]
[364911963,1749295846627,-251.24,0.00023287,2]
[364911964,1749295846637,-530.68555379,0.00023287,2]
[364911965,1749295846650,-721.58444621,0.00023287,2]